bitfinex/quotes_ETHUSD_20250130
["timestamp","ask_amount","ask_price","bid_price","bid_amount"]
[1738198587401,3.1995,3125.5,3125.0,3.19998]
[1738198587598,0.03041392,3125.4,3125.0,3.19998]
[1738198587995,0.03041392,3125.4,3125.2,3.19976]
[1738198588314,3.19909,3125.9,3125.3,4.00073]
[1738198588984,3.19909,3125.9,3125.4,3.19956]
[1738198589810,4.01168,3126.1,3125.5,3.19947]
[1738198590407,4.01168,3126.1,3125.5,3.19946]
[1738198591485,0.7907,3126.4,3125.7,0.7599]
[1738198591687,3.19873,3126.3,3125.7,0.7599]
[1738198591886,3.19873,3126.3,3125.7,3.95917]
[1738198592189,0.7907,3126.4,3125.7,0.7599]
[1738198592406,3.98929,3126.4,3125.8,3.19915]
[1738198594320,3.98929,3126.4,3125.8,3.914985]
[1738198595024,3.19859,3126.4,3125.8,3.914985]
[1738198596129,3.19859,3126.4,3125.8,7.114085]
[1738198596325,3.19838,3126.6,3125.8,3.914935]
[1738198596490,3.19852,3126.5,3125.9,3.19905]
[1738198596890,3.19838,3126.6,3126.0,3.19897]
[1738198599840,0.03122088,3126.5,3126.1,0.808]
[1738198600157,3.19839,3126.6,3126.1,0.808]
[1738198600333,0.03119096,3126.4,3126.1,0.808]
[1738198600650,0.03120336,3126.3,3126.1,1.208697]
[1738198600850,3.19839,3126.6,3126.1,1.208697]
[1738198601036,0.03129493,3126.5,3126.1,1.208697]
[1738198601348,0.03129493,3126.5,3126.1,4.407547]
[1738198601950,0.03129493,3126.5,3126.2,3.19876]
[1738198602252,3.19818,3126.8,3126.2,3.9593937]
[1738198602423,0.03127559,3126.4,3126.2,3.9593937]
[1738198602613,3.19828,3126.7,3126.2,3.9593937]
[1738198602813,0.03136362,3126.6,3126.2,3.9593937]
[1738198603318,0.03136362,3126.6,3126.2,3.9593337]
[1738198603662,7.2241,3127.2,3126.5,3.19846]
[1738198603809,0.03133019,3126.5,3126.4,6.19849]
[1738198604149,3.19797,3127.0,3126.5,3.19845]
[1738198604311,3.19797,3127.0,3126.4,6.19849]
[1738198604512,3.19797,3127.0,3126.5,3.19844]
[1738198604730,4.02627,3127.2,3126.5,3.19844]
[1738198604946,3.19793,3127.1,3126.5,3.19844]
[1738198605157,4.428897,3127.2,3126.4,6.19849]
[1738198605343,7.626727,3127.2,3126.6,3.19835]
[1738198605526,4.428897,3127.2,3126.6,3.19835]
[1738198605760,3.19787,3127.1,3126.6,3.19835]
[1738198606169,3.97428,3127.4,3126.7,3.19825]
[1738198606327,3.19765,3127.3,3126.8,3.97054]
[1738198607873,6.39497,3127.5,3126.8,3.97054]
[1738198608048,3.19746,3127.5,3126.9,3.19804]
[1738198608786,3.19756,3127.4,3126.9,3.19804]
[1738198608983,3.19746,3127.5,3126.9,3.19804]
[1738198609557,6.39499,3127.5,3126.9,3.19804]
[1738198609859,3.19746,3127.5,3126.7,3.19818]
[1738198610096,3.19764,3127.3,3126.8,3.19813]
[1738198610235,6.39496,3127.5,3126.8,3.19813]
[1738198610569,3.19746,3127.5,3126.9,3.19804]
[1738198610938,3.19746,3127.5,3127.0,3.19795]
[1738198611472,3.19746,3127.5,3127.1,0.8131]
[1738198611775,3.19723,3127.8,3127.2,3.19768]
[1738198611776,3.19719,3127.8,3127.2,3.19768]
[1738198612716,3.19731,3127.7,3127.1,0.8131]
[1738198613809,3.19731,3127.7,3127.1,4.412]
[1738198614177,3.19731,3127.7,3127.2,3.19773]
[1738198614909,0.03259218,3127.6,3127.2,3.19773]
[1738198615511,4.64417815,3127.9,3127.2,3.19773]
[1738198615677,0.0325482,3127.5,3127.3,3.19762]
[1738198615876,3.82307815,3127.9,3127.4,3.517282]
[1738198616115,3.82307815,3127.9,3127.4,3.19752]
[1738198616614,0.62595815,3127.9,3127.5,3.96972]
[1738198616763,0.62595815,3127.9,3127.6,3.19731]
[1738198616967,0.62595815,3127.9,3127.5,3.96972]
[1738198617311,0.62595815,3127.9,3127.6,3.19727]
[1738198617600,0.62595815,3127.9,3127.5,3.96972]
[1738198619007,0.41666667,3128.0,3127.5,3.96972]
[1738198619369,3.61362667,3128.0,3127.5,3.96972]
[1738198619696,0.41666667,3128.0,3127.5,3.96972]
[1738198619904,0.41666667,3128.0,3127.5,1.78099411]
[1738198620066,0.41666667,3128.0,3127.7,3.19722]
[1738198625312,0.7693,3127.9,3127.4,3.0]
[1738198625517,3.96639,3127.9,3127.4,3.0]
[1738198627616,3.96639,3127.9,3127.4,6.19753]
[1738198628508,0.7693,3127.9,3127.4,6.19753]
[1738198628800,4.79017614,3127.9,3127.4,3.0]
[1738198629006,4.79017614,3127.9,3127.4,6.19753]
[1738198629215,0.7693,3127.9,3127.5,3.19741]
[1738198629419,0.41666667,3128.0,3127.5,3.97541]
[1738198629822,0.03246807,3127.9,3127.5,3.97541]
[1738198631121,0.03246807,3127.9,3127.8,3.19713]
[1738198632731,0.03246807,3127.9,3127.8,4.02973]
[1738198632937,0.03246807,3127.9,3127.8,5.37162111]
[1738198633235,0.41666667,3128.0,3127.9,3.20453]
[1738198633531,0.41666667,3128.0,3127.9,9.94434108]
[1738198634602,0.41666667,3128.0,3127.9,9.95184108]
[1738198636020,0.41666667,3128.0,3127.9,9.94434108]
[1738198636198,0.41666667,3128.0,3127.9,11.4619173]
[1738198637217,6.67e-06,3128.1,3128.0,6.76193]
[1738198637413,6.67e-06,3128.1,3128.0,7.55373]
[1738198637803,6.67e-06,3128.1,3128.0,7.00373]
[1738198638005,6.67e-06,3128.1,3128.0,3.7918]
[1738198638205,6.67e-06,3128.1,3128.0,3.98873]
[1738198638407,0.03267115,3128.1,3128.0,3.19693]
[1738198640909,6.67e-06,3128.1,3128.0,3.19693]
[1738198641229,0.03292539,3128.1,3128.0,3.19693]
[1738198641436,0.03292539,3128.1,3128.0,4.136336]
[1738198644855,6.67e-06,3128.1,3128.0,4.136336]
[1738198646446,0.03307185,3128.1,3128.0,4.136336]
[1738198646852,0.03307185,3128.1,3128.0,10.06344708]
[1738198647024,6.67e-06,3128.1,3128.0,10.05594708]
[1738198647225,6.67e-06,3128.1,3128.0,7.136336]
[1738198647425,0.03305073,3128.1,3128.0,7.136336]
[1738198647749,0.03305073,3128.1,3128.0,6.19693]
[1738198650476,0.03305073,3128.1,3127.8,3.19704]
[1738198650781,0.03305073,3128.1,3128.0,3.19693]
[1738198651579,6.67e-06,3128.1,3128.0,3.19693]
[1738198651783,0.03305073,3128.1,3128.0,3.19693]
[1738198652081,6.67e-06,3128.1,3128.0,3.19693]
[1738198652254,0.0330296,3128.1,3128.0,3.19693]
[1738198653743,0.0330296,3128.1,3128.0,4.886927]
[1738198654216,6.67e-06,3128.1,3128.0,4.136327]
[1738198654422,0.03299789,3128.1,3127.9,3.0]
[1738198655378,0.03299789,3128.1,3127.9,6.19701]
[1738198655578,0.03299789,3128.1,3128.0,3.19693]
[1738198657929,0.03299789,3128.1,3127.9,6.19697]
[1738198658420,0.03299789,3128.1,3127.7,3.19713]
[1738198658623,0.03299789,3128.1,3127.6,3.19729]
[1738198659125,0.769,3128.0,3127.7,3.19721]
[1738198659484,0.03297167,3127.9,3127.7,3.19721]
[1738198661511,0.03297167,3127.9,3127.8,3.19713]
[1738198664035,0.03297167,3127.9,3127.7,3.19723]
[1738198665348,0.03297167,3127.9,3127.6,3.19729]
[1738198665503,0.03297167,3127.9,3127.8,3.19713]
[1738198667944,0.03297167,3127.9,3127.8,3.836572]
[1738198668437,6.67e-06,3128.1,3127.8,3.836572]
[1738198668641,6.67e-06,3128.1,3128.0,3.19693]
[1738198671812,6.67e-06,3128.1,3127.8,3.836572]
[1738198672022,6.67e-06,3128.1,3127.6,3.19733]
[1738198672362,0.776,3128.0,3127.5,3.0]
[1738198672766,0.776,3128.0,3127.5,6.19744]
[1738198672767,3.97296,3128.0,3127.5,6.19744]
[1738198673388,0.776,3128.0,3127.5,6.19744]
[1738198675820,6.67e-06,3128.1,3128.0,6.19693]
[1738198678937,6.67e-06,3128.1,3128.0,6.83261649]
[1738198679103,6.67e-06,3128.1,3128.0,10.53492757]
[1738198679282,6.67e-06,3128.1,3128.0,12.22783633]
[1738198680588,6.67e-06,3128.1,3128.0,11.59214984]
[1738198680805,6.67e-06,3128.1,3128.0,10.80944984]
[1738198681012,6.67e-06,3128.1,3128.0,6.19693]
[1738198681316,0.0316277,3128.1,3128.0,6.19693]
[1738198682501,6.67e-06,3128.1,3128.0,6.19693]
[1738198683505,6.67e-06,3128.1,3128.0,6.20443]
[1738198683702,6.67e-06,3128.1,3128.0,7.464279]
[1738198684613,6.67e-06,3128.1,3128.0,7.456779]
[1738198684821,6.67e-06,3128.1,3128.0,7.92877313]
[1738198686944,6.67e-06,3128.1,3128.0,10.85588421]
[1738198687089,6.67e-06,3128.1,3128.0,11.66288421]
[1738198687544,6.67e-06,3128.1,3128.0,11.19089008]
[1738198687928,6.67e-06,3128.1,3128.0,11.66283046]
[1738198694678,6.67e-06,3128.1,3128.0,7.93621938]
[1738198696360,6.67e-06,3128.1,3128.0,7.75913002]
[1738198696961,6.67e-06,3128.1,3128.0,7.75163002]
[1738198697278,6.67e-06,3128.1,3128.0,0.29485102]
[1738198697457,0.03042826,3128.1,3128.0,0.29485102]
[1738198698460,0.03042826,3128.1,3127.9,6.49187102]
[1738198699066,0.03042826,3128.1,3128.0,3.19693]
[1738198699941,0.03042826,3128.1,3128.0,3.49178102]
[1738198700936,0.03042826,3128.1,3128.0,7.46066212]
[1738198701862,0.03042826,3128.1,3128.0,7.9325765]
[1738198703862,0.03042826,3128.1,3128.0,11.61778758]
[1738198704167,0.03042826,3128.1,3128.0,10.85968758]
[1738198704375,0.03042826,3128.1,3128.0,11.67228758]
[1738198706574,0.03042826,3128.1,3128.0,10.18789648]
[1738198710223,0.03042826,3128.1,3128.0,10.84146113]
[1738198712686,0.03042826,3128.1,3128.0,12.51561803]
[1738198715611,0.03042826,3128.1,3128.0,12.52311803]
[1738198718285,0.03042826,3128.1,3128.0,9.41374115]
[1738198718986,0.03042826,3128.1,3128.0,9.40624115]
[1738198719330,0.03042826,3128.1,3128.0,8.43736005]
[1738198719632,0.03042826,3128.1,3128.0,7.7837954]
[1738198720111,0.03042826,3128.1,3128.0,7.7569954]
[1738198730008,0.85482826,3128.1,3128.0,0.7667654]
[1738198730503,1.30164075,3128.1,3128.0,0.7667654]
[1738198731115,0.85482826,3128.1,3128.0,3.9636954]
[1738198732141,0.85482826,3128.1,3128.0,3.49178102]
[1738198732646,0.85482826,3128.1,3128.0,0.29485102]
[1738198735051,0.85482826,3128.1,3127.9,0.29485102]
[1738198735736,0.85482826,3128.1,3128.0,3.19693]
[1738198735919,0.03042826,3128.1,3128.0,3.19693]
[1738198736730,0.03042826,3128.1,3128.0,3.49178102]
[1738198738055,0.03042826,3128.1,3128.0,6.49178102]
[1738198739552,0.03042826,3128.1,3128.0,8.57729125]
[1738198741120,0.03042826,3128.1,3128.0,9.04920563]
[1738198745365,0.03042826,3128.1,3128.0,6.9711954]
[1738198745563,0.03042826,3128.1,3128.0,0.7667654]
[1738198745771,0.84192826,3128.1,3128.0,0.7667654]
[1738198747568,0.84192826,3128.1,3127.7,0.29485102]
[1738198748098,3.19713,3127.8,3127.7,0.29485102]
[1738198748246,4.914345,3127.8,3127.7,0.29485102]
[1738198749056,3.19733,3127.6,3127.1,0.29485102]
[1738198749261,0.7721,3127.3,3127.1,0.29485102]
[1738198750987,0.7721,3127.3,3127.0,0.47191438]
[1738198750988,0.7721,3127.3,3127.0,0.29485102]
[1738198751672,0.7721,3127.3,3127.0,3.49279102]
[1738198751869,4.59348505,3127.6,3127.0,3.49279102]
[1738198752072,0.45934851,3127.5,3127.0,3.49279102]
[1738198752887,0.7649,3127.6,3127.3,3.19755]
[1738198754966,0.644113,3127.8,3127.5,3.19743]
[1738198754967,1.426013,3127.8,3127.5,3.19743]
[1738198755270,1.426013,3127.8,3127.3,3.19755]
[1738198755471,1.426013,3127.8,3127.4,3.19752]
[1738198756192,0.7819,3127.8,3127.4,3.19752]
[1738198759104,0.7819,3127.8,3126.8,0.62747581]
[1738198759314,0.7819,3127.2,3126.7,3.19818]
[1738198759660,0.7819,3127.2,3126.6,6.30765688]
[1738198759865,0.7819,3127.2,3126.8,3.19814]
[1738198760065,0.7819,3127.2,3126.7,3.0]
[1738198760388,0.7819,3127.2,3126.7,6.19825]
[1738198760703,3.19786,3127.1,3126.7,0.2942388]
[1738198762205,0.7819,3127.2,3126.5,6.19845]
[1738198762206,3.97972,3127.2,3126.5,6.19845]
[1738198762363,3.19785,3127.1,3126.5,6.19845]
[1738198762704,3.19785,3127.1,3126.6,3.19832]
[1738198764108,3.19797,3127.0,3126.5,3.0]
[1738198764314,3.97971,3127.2,3126.6,3.19836]
[1738198764487,0.78106646,3127.1,3126.6,3.19836]
[1738198765020,3.97893646,3127.1,3126.6,3.19836]
[1738198765187,0.78106646,3127.1,3126.6,3.19836]
[1738198765915,0.7819,3127.2,3126.8,3.19812]
[1738198767622,0.7819,3127.2,3126.6,3.19831]
[1738198767827,0.7819,3127.2,3126.8,3.19812]
[1738198768123,0.7819,3127.2,3126.9,3.19804]
[1738198769423,0.7546,3127.4,3126.9,3.19804]
[1738198771124,3.95214,3127.4,3126.9,3.19804]
[1738198771285,4.347348,3127.4,3126.9,3.19804]
[1738198774530,1.149808,3127.4,3126.9,3.19804]
[1738198774895,0.7546,3127.4,3126.9,3.19804]
[1738198775106,0.7546,3127.4,3126.9,6.39603]
[1738198775301,3.95216,3127.4,3126.7,7.16282]
[1738198775508,3.19764,3127.3,3126.7,7.16276]
[1738198775834,3.19764,3127.3,3126.7,6.39636]
[1738198776229,3.19764,3127.3,3126.7,3.19818]
[1738198776532,3.19764,3127.3,3125.3,3.99525]
[1738198776533,0.7695,3126.0,3125.3,3.99525]
[1738198776707,3.96856,3126.0,3125.3,3.19968]
[1738198777035,3.19913,3125.9,3125.3,3.19968]
[1738198777399,3.19913,3125.9,3125.3,6.3993]
[1738198777622,0.7695,3126.0,3125.5,3.19945]
[1738198779012,3.96379,3126.4,3125.5,3.19948]
[1738198779198,3.96379,3126.4,3125.7,3.19927]
[1738198779399,3.19867,3126.3,3125.7,3.19927]
[1738198779599,3.96379,3126.4,3125.8,3.19916]
[1738198779833,3.96379,3126.4,3125.7,3.19927]
[1738198780038,3.19871,3126.3,3125.7,3.19927]
[1738198781137,3.19884,3126.2,3125.6,3.0]
[1738198781538,3.19884,3126.2,3125.7,3.19927]
[1738198782938,0.7652,3126.4,3125.7,3.19927]
[1738198783605,0.7652,3126.4,3125.8,3.19916]
[1738198783806,1.481425,3126.4,3125.9,3.19904]
[1738198784632,4.680035,3126.4,3125.8,3.19917]
[1738198785042,1.481425,3126.4,3125.9,3.19907]
[1738198785649,4.680005,3126.4,3125.7,6.39841]
[1738198785817,1.481425,3126.4,3125.9,3.19906]
[1738198786754,1.481425,3126.4,3125.9,3.199]
[1738198786930,0.7652,3126.4,3126.1,3.19884]
[1738198787735,0.7652,3126.4,3126.2,3.19872]
[1738198787949,4.00141,3126.8,3126.2,3.19872]
[1738198788631,0.8032,3126.8,3126.2,3.19872]
[1738198788842,0.8032,3126.8,3126.3,3.19866]
[1738198789061,1.203329,3126.8,3126.3,3.19866]
[1738198789554,4.401519,3126.8,3126.3,3.19866]
[1738198790253,1.203329,3126.8,3126.3,3.19866]
[1738198792224,4.401499,3126.8,3126.1,3.19886]
[1738198792441,4.401499,3126.8,3126.2,3.19876]
[1738198792857,3.19854,3126.5,3125.9,3.199]
[1738198793035,0.7757,3126.4,3125.9,3.199]
[1738198793467,0.7757,3126.4,3126.0,3.19896]
[1738198794462,0.7757,3126.4,3125.9,3.19906]
[1738198795367,0.7757,3126.4,3125.8,9.39823]
[1738198795664,0.7757,3126.4,3125.9,3.19898]
[1738198796032,0.7757,3126.4,3126.1,3.19881]
[1738198797070,0.7757,3126.4,3126.1,6.39762]
[1738198797245,0.7757,3126.4,3126.2,3.19876]
[1738198797573,0.7757,3126.4,3126.1,3.19881]
[1738198797742,0.7757,3126.4,3126.1,3.19879]
[1738198798569,3.19807,3126.9,3126.4,3.19856]
[1738198798570,0.8092,3126.8,3126.4,3.19856]
[1738198800755,0.8092,3126.8,3126.5,3.19845]
[1738198801146,0.7872,3127.1,3126.7,3.19826]
[1738198801454,0.7821,3126.6,3126.0,3.19891]
[1738198801676,3.19847,3126.5,3125.9,3.199]
[1738198801980,3.19847,3126.5,3126.0,3.0]
[1738198802286,3.98053,3126.6,3126.0,6.1989]
[1738198802452,4.698409,3126.6,3126.1,0.29508734]
[1738198802653,0.7821,3126.6,3126.1,3.49386734]
[1738198803793,0.7821,3126.6,3126.3,3.19866]
[1738198804012,0.763,3127.0,3126.5,3.19846]
[1738198804457,0.763,3127.0,3126.7,3.19819]
[1738198805390,0.7722,3126.5,3125.9,4.01857]
[1738198805694,0.7722,3126.5,3126.0,3.1989]
[1738198805855,0.7722,3126.5,3126.1,3.19884]
[1738198806614,0.7722,3126.5,3126.0,3.0]
[1738198806925,0.7722,3126.5,3125.9,4.01857]
[1738198806926,0.7722,3126.5,3126.2,3.1987]
[1738198807754,0.7722,3126.5,3126.3,0.29556758]
[1738198807955,3.97066,3126.5,3126.3,0.29556758]
[1738198808266,0.397066,3126.4,3126.3,0.29556758]
[1738198808458,3.595626,3126.4,3126.3,0.29556758]
[1738198808807,4.396526,3126.4,3126.3,0.29556758]
[1738198809162,4.946526,3126.4,3126.3,0.29556758]
[1738198809668,0.7992,3126.3,3125.6,0.76882131]
[1738198810012,3.99793,3126.3,3125.7,3.19927]
[1738198810298,0.7992,3126.3,3125.9,3.19907]
[1738198810659,0.7643,3126.7,3126.1,3.1988]
[1738198810860,3.96256,3126.7,3126.1,3.19881]
[1738198811892,3.96256,3126.7,3126.2,3.19874]
[1738198811893,0.7643,3126.7,3126.2,3.19874]
[1738198812070,3.19799,3127.0,3126.4,3.19849]
[1738198812260,4.00269,3127.0,3126.4,3.19849]
[1738198812460,3.19806,3126.9,3126.4,3.19849]
[1738198812656,4.00269,3127.0,3126.4,3.19849]
[1738198813798,0.8296,3126.8,3126.0,3.67169781]
[1738198814020,3.19868,3126.3,3126.0,0.47276781]
[1738198814160,0.8296,3126.2,3126.0,0.47276781]
[1738198814670,0.8296,3126.2,3125.6,3.19928]
[1738198815484,4.02843,3126.2,3125.6,3.19928]
[1738198816097,3.19915,3125.9,3125.1,3.11687688]
[1738198816360,4.02765,3125.7,3125.0,3.98873]
[1738198816563,0.8283,3125.7,3125.5,0.47275456]
[1738198816876,3.19908,3125.9,3125.5,0.47275456]
[1738198817568,0.8283,3126.0,3125.5,0.47275456]
[1738198817792,0.8283,3126.0,3125.6,3.19937]
[1738198819069,3.19885,3126.2,3125.6,3.19937]
[1738198819265,3.91913,3126.2,3125.6,3.19937]
[1738198819679,0.8052,3126.4,3125.6,0.7566]
[1738198819899,3.19844,3126.6,3125.9,3.19901]
[1738198820098,3.19852,3126.5,3125.9,3.19901]
[1738198820779,7.18286,3126.7,3126.0,3.19895]
[1738198821015,3.19848,3126.5,3126.0,3.19895]
[1738198821631,3.19848,3126.5,3125.8,3.0]
[1738198821632,3.91683,3126.5,3125.8,3.0]
[1738198821922,3.19881,3126.2,3125.7,3.19923]
[1738198822782,3.19867,3126.3,3125.7,3.19923]
[1738198823917,3.19889,3126.1,3125.8,0.29504093]
[1738198824122,3.97607,3125.9,3125.8,0.29504093]
[1738198824280,0.777,3125.9,3125.8,0.29504093]
[1738198825178,3.98269,3126.1,3125.8,0.29504093]
[1738198825381,4.700831,3126.1,3125.5,3.19946]
[1738198825631,3.19898,3126.0,3125.5,3.19946]
[1738198825791,4.700831,3126.1,3125.5,3.19946]
[1738198826406,3.19902,3126.0,3125.5,3.19946]
[1738198827814,0.7838,3126.1,3125.5,3.19946]
[1738198828334,3.98271,3126.1,3125.5,3.19946]
[1738198828631,3.19901,3126.0,3125.5,3.19946]
[1738198828836,3.19901,3126.0,3125.6,0.2949888]
[1738198830749,0.7838,3126.1,3125.6,0.2949888]
[1738198830935,0.7869,3126.5,3125.7,0.7587]
[1738198831135,0.3075,3127.5,3126.0,3.19896]
[1738198831136,3.98509,3126.8,3126.0,3.19896]
[1738198831306,3.98509,3126.8,3126.2,3.19875]
[1738198831504,3.19831,3126.7,3126.2,3.19875]
[1738198832620,3.19831,3126.7,3126.0,6.39785]
[1738198832859,3.98509,3126.8,3126.0,3.19889]
[1738198833141,3.19899,3126.0,3125.4,3.19953]
[1738198833305,3.19925,3125.8,3125.2,4.01056]
[1738198833503,0.7542,3125.8,3125.2,4.01056]
[1738198834342,0.7542,3125.8,3125.4,3.19957]
[1738198834771,4.00811,3126.2,3125.4,3.920583]
[1738198834931,7.20697,3126.2,3125.6,3.19938]
[1738198835262,4.00811,3126.2,3125.4,3.19957]
[1738198835474,3.19898,3126.0,3125.4,3.19957]
[1738198836245,3.99616,3125.9,3125.2,0.8108]
[1738198836446,3.19949,3125.5,3125.0,0.8206]
[1738198836634,3.19969,3125.3,3124.8,0.8206]
[1738198836833,3.19982,3125.2,3124.6,3.20033]
[1738198837233,3.19982,3125.2,3124.9,0.47217602]
[1738198837656,3.2,3125.0,3124.9,0.47217602]
[1738198837868,3.599502,3125.2,3124.9,0.47217602]
[1738198838271,3.2,3125.0,3124.9,0.47217602]
[1738198839374,3.2,3125.0,3124.6,0.29547134]
[1738198840475,0.7946,3124.9,3124.6,0.29547134]
[1738198840650,3.99471,3124.9,3124.6,0.29547134]
[1738198840972,3.99471,3124.9,3124.4,3.2006]
[1738198841172,3.99471,3124.9,3124.3,3.0]
[1738198841376,3.2003,3124.8,3124.3,3.0]
[1738198841871,3.20006,3125.0,3124.3,3.0]
[1738198842074,0.7653,3125.2,3124.3,3.0]
[1738198842280,3.20042,3124.6,3124.0,3.201]
[1738198842447,3.96572,3124.6,3124.0,3.201]
[1738198842647,3.20051,3124.5,3124.0,3.201]
[1738198842947,0.7653,3124.6,3124.4,0.29502075]
[1738198843155,3.96571,3124.6,3124.4,0.29502075]
[1738198843360,0.7653,3124.6,3124.4,0.29502075]
[1738198844382,3.96573,3124.6,3124.1,6.2009]
[1738198844944,3.96573,3124.6,3124.1,3.2009]
[1738198845170,0.7653,3124.6,3124.1,3.2009]
[1738198845789,0.7653,3124.6,3124.2,3.20074]
[1738198848039,0.7653,3124.6,3124.0,3.20098]
[1738198848255,3.96571,3124.6,3124.1,3.20091]
[1738198848875,3.96571,3124.6,3124.0,3.20098]
[1738198849081,3.20053,3124.5,3124.0,3.20098]
[1738198849675,0.7653,3124.6,3124.1,3.2009]
[1738198849877,0.7653,3124.6,3124.2,3.20081]
[1738198855110,1.161854,3124.6,3123.3,3.91227688]
[1738198855280,0.7503,3124.1,3123.5,3.20151]
[1738198855903,0.7503,3124.1,3123.7,3.20125]
[1738198856409,0.7503,3124.1,3123.5,3.20151]
[1738198856611,0.7503,3124.1,3123.6,3.20142]
[1738198857739,0.7503,3124.1,3123.5,3.20151]
[1738198857740,0.7503,3124.1,3123.7,3.20132]
[1738198858615,0.7503,3124.1,3123.5,3.20151]
[1738198858809,0.7503,3124.1,3123.5,3.20148]
[1738198859644,0.7807,3124.0,3123.2,6.20175]
[1738198859802,0.7807,3124.0,3123.4,6.40318]
[1738198860007,0.7807,3124.0,3123.6,3.20138]
[1738198861220,0.7807,3124.0,3123.7,3.20125]
[1738198862006,0.7667,3124.6,3124.0,3.7764]
[1738198862207,0.7667,3124.6,3124.0,0.7764]
[1738198862406,0.7667,3124.4,3123.4,3.97795]
[1738198862632,0.7515,3124.2,3123.1,0.776]
[1738198862833,0.7515,3123.7,3123.1,3.97788]
[1738198863238,0.7515,3123.7,3123.5,0.29581133]
[1738198863542,1.14678,3123.7,3123.5,0.29581133]
[1738198864423,3.20143,3123.6,3123.0,3.20197]
[1738198864646,3.20154,3123.5,3123.0,3.20197]
[1738198865725,3.20164,3123.4,3122.8,3.2022]
[1738198866337,3.20144,3123.6,3122.8,3.2022]
[1738198866627,3.20144,3123.6,3123.0,3.20197]
[1738198866828,0.7515,3123.7,3122.9,3.0]
[1738198867054,0.7831,3124.0,3123.5,3.20146]
[1738198867377,0.7831,3124.4,3123.6,4.03433]
[1738198867595,0.8133,3123.9,3123.3,3.0]
[1738198867879,0.8133,3123.9,3123.5,3.20153]
[1738198868023,0.8133,3123.9,3123.5,3.841839]
[1738198868225,0.7689,3124.1,3123.8,3.20116]
[1738198868433,0.7689,3124.5,3124.0,3.20102]
[1738198868750,3.20069,3124.4,3123.8,3.20116]
[1738198869167,0.7689,3124.0,3123.5,3.20151]
[1738198869365,3.96993,3124.0,3123.5,3.20151]
[1738198869575,0.7689,3124.0,3123.5,3.20151]
[1738198869812,3.20113,3123.9,3123.3,3.20169]
[1738198870488,0.7815,3123.8,3123.0,0.7983]
[1738198870792,3.98308,3123.5,3122.9,3.20212]
[1738198871584,4.701535,3123.5,3122.9,3.20212]
[1738198871788,0.718455,3123.5,3123.0,3.20198]
[1738198871973,3.97012,3123.8,3123.0,3.20198]
[1738198872176,3.20144,3123.6,3123.0,3.20198]
[1738198872553,3.20144,3123.6,3122.9,3.20212]
[1738198872759,4.00394,3123.5,3122.9,3.20212]
[1738198873090,4.00394,3123.5,3123.1,0.29597349]
[1738198873403,3.20184,3123.2,3123.1,0.29597349]
[1738198874291,3.20176,3123.3,3123.1,0.29597349]
[1738198874566,0.8024,3123.5,3123.0,3.20201]
[1738198875290,0.8024,3123.5,3122.8,3.20217]
[1738198875501,3.20167,3123.4,3122.8,3.20217]
[1738198875659,0.8024,3123.5,3122.9,3.20207]
[1738198875861,0.7549,3123.7,3123.3,3.20168]
[1738198876094,3.20113,3123.9,3123.3,3.20168]
[1738198876464,3.95599,3124.0,3123.3,3.20168]
[1738198876785,3.95599,3124.0,3123.4,3.20157]
[1738198877598,0.7549,3124.0,3123.6,3.20141]
[1738198877798,0.7627,3124.2,3123.7,3.20133]
[1738198878802,3.95666,3124.6,3123.9,6.40211]
[1738198879002,3.596206,3124.5,3123.9,3.20105]
[1738198879398,3.95666,3124.6,3124.0,3.20096]
[1738198879979,3.95666,3124.6,3123.9,3.20105]
[1738198879980,0.7562,3124.6,3124.1,3.20087]
[1738198880384,3.95661,3124.6,3124.1,3.20087]
[1738198880705,0.7562,3124.6,3124.1,3.20087]
[1738198880866,0.7624,3124.9,3124.2,3.20079]
[1738198881066,3.20022,3124.8,3124.2,3.20079]
[1738198881478,0.7624,3124.9,3124.4,3.2006]
[1738198882096,3.9625,3124.9,3124.4,3.2006]
[1738198882408,3.20022,3124.8,3124.2,3.20074]
[1738198882914,3.20022,3124.8,3124.3,3.2007]
[1738198883608,0.7624,3124.9,3124.3,3.2007]
[1738198883812,3.96192,3125.2,3124.6,3.20037]
[1738198883997,3.96192,3125.2,3124.3,0.39858]
[1738198884178,0.7621,3125.2,3124.1,0.7851]
[1738198884376,0.78,3124.5,3123.9,3.0]
[1738198884576,3.20064,3124.4,3123.8,3.96978]
[1738198885613,3.20064,3124.4,3123.8,7.17094]
[1738198885816,3.20064,3124.4,3123.9,0.29556716]
[1738198886113,3.20064,3124.4,3123.9,0.59114322]
[1738198886269,0.8321,3125.3,3123.9,4.36735154]
[1738198886469,4.03185,3125.3,3124.7,3.20028]
[1738198886671,3.1998,3125.2,3124.5,3.2005]
[1738198887507,0.8321,3125.3,3124.5,3.2005]
[1738198887709,3.19991,3125.1,3124.5,3.2005]
[1738198887914,3.603111,3125.1,3124.5,3.2005]
[1738198888211,0.8321,3125.3,3124.5,3.2005]
[1738198888416,4.03186,3125.3,3124.7,3.20028]
[1738198888592,0.8321,3125.3,3124.7,3.20024]
[1738198888978,3.19989,3125.2,3124.5,3.20046]
[1738198889179,3.923118,3125.1,3124.5,3.20046]
[1738198890532,3.923118,3125.1,3124.5,6.4009]
[1738198890840,0.723168,3125.1,3124.5,3.20044]
[1738198891007,3.1998,3125.2,3124.7,3.2003]
[1738198892340,0.8321,3125.3,3124.7,3.2003]
[1738198892789,0.8321,3125.3,3125.0,3.19997]
[1738198892989,3.19943,3125.6,3125.0,3.19997]
[1738198892990,3.99528,3125.5,3125.0,3.19997]
[1738198894242,0.7958,3125.5,3125.0,3.19997]
[1738198894659,0.7958,3125.5,3125.1,3.19983]
[1738198894925,3.98712,3125.8,3125.2,3.19976]